bitfinex-derivatives/quotes_BNBF0:USTF0_20250302
["timestamp","ask_amount","ask_price","bid_price","bid_amount"]
[1740911737248,4.16093687,609.75,609.04,2.27838565]
[1740911737549,2.73231465,609.74,609.04,2.27838565]
[1740911738051,1.13217328,609.73,609.04,2.27838565]
[1740911738952,1.13217328,609.72,609.04,2.27838565]
[1740911739447,1.13217328,609.71,609.04,2.27838565]
[1740911739646,2.8456079,609.71,609.04,2.27838565]
[1740911739851,2.73178629,609.7,609.04,2.27838565]
[1740911740045,4.16040851,609.7,609.04,2.27838565]
[1740911740253,3.02823523,609.69,609.04,2.27838565]
[1740911740450,1.13217328,609.69,609.04,2.27838565]
[1740911740650,1.13217328,609.69,609.04,4.06438565]
[1740911740845,1.42862222,609.7,609.04,4.06438565]
[1740911740846,1.13217328,609.68,609.04,4.06438565]
[1740911741350,1.13217328,609.67,609.04,4.06438565]
[1740911742149,1.13217328,609.66,609.04,4.06438565]
[1740911742745,1.13217328,609.65,609.04,4.06438565]
[1740911742946,2.84576258,609.65,609.04,4.06438565]
[1740911743146,2.73138935,609.64,609.04,4.06438565]
[1740911743348,4.15924653,609.64,609.04,4.06438565]
[1740911743545,4.15924653,609.63,609.04,4.06438565]
[1740911743746,3.02707325,609.62,609.04,4.06438565]
[1740911743946,1.59921607,609.62,609.04,4.06438565]
[1740911744145,2.73138935,609.63,609.04,4.06438565]
[1740911744349,1.13217328,609.61,609.04,4.06438565]
[1740911744948,1.13217328,609.6,609.04,4.06438565]
[1740911745346,1.13217328,609.59,609.04,4.06438565]
[1740911745752,1.71372292,609.58,609.04,5.46338565]
[1740911746052,2.8458962,609.58,609.04,5.46338565]
[1740911746350,1.13217328,609.57,609.04,5.46338565]
[1740911746755,1.13217328,609.56,609.04,5.46338565]
[1740911747148,1.13217328,609.55,609.04,5.46338565]
[1740911748151,1.13217328,609.54,609.04,5.46338565]
[1740911748548,1.13217328,609.53,609.04,5.46338565]
[1740911749554,1.13217328,609.52,609.04,5.46338565]
[1740911750355,1.13217328,609.51,609.04,5.46338565]
[1740911750850,1.13217328,609.5,609.04,5.46338565]
[1740911751456,1.13217328,609.49,609.04,5.46338565]
[1740911751852,1.13217328,609.48,609.04,5.46338565]
[1740911752457,1.13217328,609.57,609.04,5.46338565]
[1740911752954,1.13217328,609.56,609.04,5.46338565]
[1740911753854,1.13217328,609.55,609.04,5.46338565]
[1740911754253,1.13217328,609.54,609.04,5.46338565]
[1740911754657,1.71377215,609.53,609.04,5.46338565]
[1740911754856,1.13217328,609.52,609.04,5.135]
[1740911755559,1.13217328,609.51,609.04,5.135]
[1740911756160,1.13217328,609.5,609.04,5.135]
[1740911756957,1.13217328,609.49,609.04,5.135]
[1740911757461,1.13217328,609.48,609.04,5.135]
[1740911757956,1.71392689,609.47,609.04,5.135]
[1740911758164,2.84610017,609.47,609.04,5.135]
[1740911758660,1.13217328,609.46,609.04,5.135]
[1740911759160,1.13217328,609.45,609.04,5.135]
[1740911760160,1.13217328,609.46,609.04,5.135]
[1740911760862,1.13217328,609.45,609.04,5.135]
[1740911761457,1.13217328,609.46,609.04,5.135]
[1740911762365,1.13217328,609.45,609.04,5.135]
[1740911762965,1.13217328,609.44,609.04,5.135]
[1740911763366,1.13217328,609.43,609.04,5.135]
[1740911763970,2.84627604,609.42,609.04,5.135]
[1740911764172,1.59234509,609.41,609.04,5.135]
[1740911764565,1.13217328,609.4,609.04,5.135]
[1740911764971,1.13217328,609.4,609.04,4.558]
[1740911765173,1.13217328,609.39,609.04,4.558]
[1740911765569,1.13217328,609.38,609.04,3.185]
[1740911766573,1.13217328,609.37,609.04,3.185]
[1740911766768,2.84625494,609.37,609.04,3.185]
[1740911767173,1.13217328,609.36,609.04,3.185]
[1740911767570,1.13217328,609.36,609.04,1.399]
[1740911767972,1.13217328,609.35,609.04,1.399]
[1740911768776,1.13217328,609.34,609.04,1.399]
[1740911769378,1.13217328,609.36,609.04,1.399]
[1740911769774,1.7141098,609.33,609.04,1.399]
[1740911769973,1.13217328,609.36,609.04,1.399]
[1740911770177,1.7139902,609.43,609.04,1.399]
[1740911770679,1.7139902,609.43,609.04,2.765]
[1740911772479,1.59380216,609.56,609.04,2.765]
[1740911772682,1.13217328,609.56,609.04,2.765]
[1740911772979,1.71391985,609.55,609.04,2.765]
[1740911773280,1.13217328,609.54,609.04,2.765]
[1740911774075,1.13217328,609.53,609.04,2.765]
[1740911774579,1.13217328,609.52,609.04,2.765]
[1740911775374,1.13217328,609.51,609.04,2.765]
[1740911775976,2.84603686,609.5,609.04,2.765]
[1740911777984,1.59705252,609.49,609.04,2.765]
[1740911778380,3.02480279,609.49,609.04,2.765]
[1740911778583,4.15697607,609.49,609.04,2.765]
[1740911778883,4.73887038,609.48,609.04,2.765]
[1740911779084,3.02480279,609.47,609.04,2.765]
[1740911779285,4.15697607,609.47,609.04,2.765]
[1740911779584,1.59796811,609.46,609.04,2.765]
[1740911779885,1.13217328,609.45,609.04,2.765]
[1740911780885,1.13217328,609.44,609.04,2.765]
[1740911781580,1.13217328,609.43,609.04,2.765]
[1740911781780,4.15697607,609.43,609.04,2.765]
[1740911782084,3.02480279,609.42,609.04,2.765]
[1740911782284,4.15697607,609.42,609.04,2.765]
[1740911782486,1.59796811,609.41,609.04,2.765]
[1740911782884,1.42683468,609.4,609.04,2.765]
[1740911783179,1.13217328,609.4,609.04,2.765]
[1740911783382,2.55900796,609.4,609.04,2.765]
[1740911783585,2.73014139,609.39,609.04,2.765]
[1740911783782,4.15697607,609.39,609.04,2.765]
[1740911783985,3.02480279,609.38,609.04,1.366]
[1740911784186,1.42683468,609.37,609.04,1.366]
[1740911784387,1.42683468,609.36,609.04,1.366]
[1740911784688,3.02480279,609.35,609.04,1.366]
[1740911784882,1.59796811,609.34,609.04,1.366]
[1740911785089,1.13070975,609.33,609.04,1.366]
[1740911785688,1.13070975,609.32,609.04,1.366]
[1740911786587,1.13070975,609.31,609.04,1.366]
[1740911786986,1.13070975,609.3,609.04,1.366]
[1740911787583,1.42929647,609.29,609.04,1.366]
[1740911787783,1.42929647,609.28,608.99,1.581]
[1740911787982,1.42929647,609.27,608.99,1.581]
[1740911788187,1.42929647,609.26,608.99,1.581]
[1740911788388,1.13070975,609.25,608.99,1.581]
[1740911788785,4.15797433,609.25,608.99,1.581]
[1740911788991,4.15797433,609.24,608.99,1.581]
[1740911789291,3.02726458,609.23,608.99,1.581]
[1740911789485,1.59796811,609.23,608.99,1.581]
[1740911789688,1.13070975,609.22,608.99,1.581]
[1740911790289,1.13070975,609.21,608.99,1.581]
[1740911790691,1.13070975,609.2,608.99,1.581]
[1740911790888,1.13070975,609.2,608.95,1.317]
[1740911791193,1.13070975,609.19,608.95,1.317]
[1740911791594,1.13070975,609.18,608.95,1.317]
[1740911792489,1.13070975,609.17,608.95,1.317]
[1740911792895,1.13070975,609.16,608.95,1.317]
[1740911793596,1.13070975,609.15,608.95,1.317]
[1740911794491,2.84528404,609.14,608.95,1.317]
[1740911794691,1.59834274,609.13,608.95,1.317]
[1740911795093,1.13070975,609.12,608.95,1.317]
[1740911795292,2.72905249,609.12,608.95,1.317]
[1740911795692,1.13070975,609.11,608.95,1.317]
[1740911796093,1.13070975,609.1,608.95,1.317]
[1740911796696,2.84554455,609.09,608.95,1.317]
[1740911796896,1.59834274,609.08,608.95,1.317]
[1740911797095,1.13070975,609.07,608.95,1.317]
[1740911797697,2.72905249,609.07,608.95,1.317]
[1740911797896,1.13070975,609.06,608.95,1.317]
[1740911798600,1.13070975,609.05,608.95,1.317]
[1740911799397,1.13070975,609.08,608.95,1.317]
[1740911799903,2.55695279,609.21,608.95,1.317]
[1740911800104,1.71462357,609.16,608.95,1.317]
[1740911800900,1.13070975,609.15,608.95,1.317]
[1740911801706,1.13070975,609.14,608.95,1.317]
[1740911802702,1.13070975,609.24,608.95,1.317]
[1740911802906,1.71434905,609.37,608.95,1.317]
[1740911803711,1.13070975,609.36,608.95,1.317]
[1740911804101,1.13070975,609.35,608.95,1.317]
[1740911805005,1.13070975,609.34,608.95,1.317]
[1740911805200,1.13070975,609.33,608.95,1.317]
[1740911805601,1.13070975,609.32,608.95,1.317]
[1740911805808,2.84488991,609.32,608.95,1.317]
[1740911806008,1.59760421,609.31,608.95,1.317]
[1740911806205,2.72831396,609.31,608.95,1.317]
[1740911806405,4.15514331,609.31,608.95,1.317]
[1740911806605,2.5575391,609.31,608.95,1.317]
[1740911806806,1.13070975,609.31,608.95,1.317]
[1740911807004,1.13070975,609.3,608.95,1.317]
[1740911807404,1.13070975,609.29,608.95,1.317]
[1740911807615,1.13070975,609.28,608.95,1.317]
[1740911808305,1.13070975,609.27,608.95,1.317]
[1740911808710,1.13070975,609.26,608.95,1.317]
[1740911809605,1.13070975,609.25,608.95,1.317]
[1740911810208,1.13070975,609.24,608.88,0.577]
[1740911810506,4.15497238,609.24,608.88,0.577]
[1740911810809,1.71418016,609.32,608.88,0.577]
[1740911810810,4.15497238,609.23,608.88,0.577]
[1740911811009,3.02426263,609.22,608.88,0.577]
[1740911811210,2.72832605,609.22,608.88,0.577]
[1740911811511,2.72832605,609.21,608.88,0.577]
[1740911811711,1.5976163,609.2,608.88,0.577]
[1740911812107,1.13070975,609.19,608.88,0.577]
[1740911812309,2.72832605,609.19,608.87,1.359]
[1740911812503,1.13070975,609.18,608.87,1.359]
[1740911812905,1.13070975,609.17,608.87,1.359]
[1740911813505,1.13070975,609.16,608.87,1.359]
[1740911813911,1.13070975,609.15,608.87,1.359]
[1740911814314,1.13070975,609.14,608.87,1.359]
[1740911815113,1.13070975,609.13,608.87,1.359]
[1740911815510,1.71444055,609.26,608.87,1.359]
[1740911815912,1.12894015,609.25,608.87,1.359]
[1740911816914,1.12894015,609.24,608.87,1.359]
[1740911817520,1.12894015,609.23,608.87,1.359]
[1740911818118,1.12894015,609.22,608.87,1.359]
[1740911818317,1.12894015,609.21,608.87,1.359]
[1740911819224,1.12894015,609.2,608.87,1.359]
[1740911819626,1.12894015,609.19,608.87,1.359]
[1740911820419,1.12894015,609.18,608.87,1.359]
[1740911821227,1.12894015,609.17,608.87,1.359]
[1740911821422,1.12894015,609.16,608.87,1.359]
[1740911821729,1.12894015,609.15,608.87,1.359]
[1740911822121,1.7143772,609.28,608.87,1.359]
[1740911822523,1.12924099,609.27,608.87,1.359]
[1740911823130,1.12924099,609.26,608.87,1.359]
[1740911823525,1.12924099,609.25,608.87,1.359]
[1740911824625,1.12924099,609.24,608.87,1.359]
[1740911825230,1.12924099,609.23,608.87,1.359]
[1740911825630,4.1555039,609.23,608.87,1.359]
[1740911825825,4.1555039,609.22,608.87,1.359]
[1740911826029,3.02626291,609.21,608.87,1.359]
[1740911826225,1.59870486,609.21,608.87,1.359]
[1740911826429,1.5984536,609.21,608.87,1.359]
[1740911826630,1.12924099,609.2,608.87,1.359]
[1740911826830,2.84375897,609.2,608.87,1.359]
[1740911827027,2.72769459,609.19,608.87,1.359]
[1740911827233,4.15507766,609.19,608.87,1.359]
[1740911827433,3.02583667,609.18,608.87,1.359]
[1740911827633,1.12924099,609.17,608.87,1.359]
[1740911828330,1.12924099,609.16,608.87,1.359]
[1740911829232,1.12924099,609.15,608.87,1.359]
[1740911829731,1.12924099,609.14,608.87,1.359]
[1740911830536,1.12924099,609.13,608.87,1.359]
[1740911830736,2.72769459,609.13,608.87,1.359]
[1740911830939,1.12924099,609.12,608.87,1.359]
[1740911831732,1.12924099,609.11,608.87,1.359]
[1740911832338,1.12924099,609.11,608.86,1.474]
[1740911832532,1.12924099,609.1,608.86,1.474]
[1740911833533,1.12924099,609.09,608.86,1.474]
[1740911834234,1.12924099,609.08,608.86,1.474]
[1740911834742,1.12924099,609.07,608.86,1.474]
[1740911835439,1.12924099,609.06,608.86,1.474]
[1740911836139,1.12924099,609.05,608.86,1.474]
[1740911836837,1.12924099,609.04,608.86,1.474]
[1740911837239,1.12924099,609.03,608.86,1.474]
[1740911837943,1.12924099,609.02,608.86,1.474]
[1740911840345,1.12924099,609.02,608.83,1.412]
[1740911841146,1.12924099,609.01,608.83,1.412]
[1740911841945,1.12924099,609.0,608.83,1.412]
[1740911842341,1.12924099,608.99,608.83,1.412]
[1740911842853,1.43098634,609.14,608.83,1.412]
[1740911843147,1.60252291,609.14,608.83,1.412]
[1740911843448,1.13204566,609.13,608.83,1.412]
[1740911843850,2.73463302,609.13,608.83,1.412]
[1740911844446,1.13204566,609.12,608.83,1.412]
[1740911844849,1.13204566,609.11,608.83,1.412]
[1740911845546,1.13204566,609.1,608.83,1.412]
[1740911845948,1.13204566,609.09,608.83,1.412]
[1740911846552,1.13204566,609.08,608.83,1.412]
[1740911847047,1.13204566,609.07,608.83,1.412]
[1740911847449,1.13204566,609.06,608.83,1.412]
[1740911848450,1.13204566,609.05,608.83,1.412]
[1740911848956,1.71444055,609.32,608.83,1.412]
[1740911849156,3.03418246,609.31,608.83,1.412]
[1740911849359,3.03418246,609.3,608.83,1.412]
[1740911849549,3.03418246,609.29,608.83,1.412]
[1740911849753,3.03418246,609.28,608.83,1.412]
[1740911849948,3.03406235,609.27,608.83,1.412]
[1740911850153,1.13206604,609.28,608.83,1.412]
[1740911850552,1.13206604,609.27,608.83,1.412]
[1740911850950,1.13206604,609.26,608.83,1.412]
[1740911851152,1.13206604,609.25,608.83,1.412]
[1740911851856,1.13206604,609.24,608.83,1.412]
[1740911852256,1.13206604,609.23,608.83,1.412]
[1740911852956,1.13206604,609.22,608.83,1.412]
[1740911853553,1.13206604,609.21,608.83,1.412]
[1740911853757,1.13206604,609.21,608.78,1.724]
[1740911853956,1.13206604,609.2,608.78,1.724]
[1740911854357,1.13206604,609.19,608.78,1.724]
[1740911854960,1.13206604,609.18,608.78,2.301]
[1740911855658,3.03264289,609.42,608.78,2.301]
[1740911855860,3.03264289,609.41,608.78,2.301]
[1740911856056,3.03264289,609.4,608.78,2.301]
[1740911856261,3.03264289,609.39,608.78,2.301]
[1740911856462,4.16449052,609.38,608.78,2.301]
[1740911856664,3.03264289,609.37,608.78,2.301]
[1740911856865,1.43053174,609.36,608.78,3.893]
[1740911857163,1.43053174,609.35,608.78,3.893]
[1740911857358,2.56237937,609.34,608.78,3.893]
[1740911857555,3.03264289,609.33,608.78,3.893]
[1740911857759,4.16449052,609.33,608.78,5.35]
[1740911857960,1.43053174,609.32,608.78,5.35]
[1740911858263,1.43053174,609.31,608.78,5.35]
[1740911858564,1.43053174,609.3,608.78,5.35]
[1740911858764,1.43053174,609.29,608.78,5.35]
[1740911858962,3.03291767,609.3,608.78,5.35]
[1740911859163,1.13184763,609.28,608.78,5.35]
[1740911859363,2.56237937,609.28,608.78,5.35]
[1740911859558,1.13184763,609.28,608.78,5.35]
[1740911860064,1.13184763,609.27,608.78,5.35]
[1740911860462,1.13184763,609.26,608.78,5.35]
[1740911861059,1.13184763,609.25,608.78,5.35]
[1740911861461,1.13184763,609.24,608.78,5.35]
[1740911862262,1.13184763,609.23,608.78,5.35]
[1740911862663,1.13184763,609.22,608.78,5.35]
[1740911863462,3.0330432,609.39,608.78,5.35]
[1740911863666,3.0330432,609.38,608.78,5.35]
[1740911863870,3.0330432,609.37,608.78,5.35]
[1740911864166,1.60227091,609.36,608.78,5.35]
[1740911864362,1.13171741,609.37,608.78,5.35]
[1740911864666,1.43039026,609.36,608.78,5.35]
[1740911864868,1.13171741,609.35,608.78,5.35]
[1740911865464,1.13171741,609.34,608.78,5.35]
[1740911866469,1.13171741,609.33,608.78,5.35]
[1740911867070,1.13171741,609.32,608.78,5.35]
[1740911867666,1.13171741,609.31,608.78,5.35]
[1740911868275,1.13171741,609.3,608.78,5.35]
[1740911869077,1.13171741,609.29,608.78,5.35]
[1740911869477,1.13171741,609.28,608.78,5.35]
[1740911869977,1.13171741,609.27,608.78,5.35]
[1740911870375,1.13171741,609.26,608.78,5.35]
[1740911870577,1.13171741,609.25,608.78,5.35]
[1740911871373,1.13171741,609.24,608.78,5.35]
[1740911871879,1.13171741,609.23,608.78,5.35]
[1740911872279,1.13171741,609.22,608.78,5.35]
[1740911872978,1.13171741,609.21,608.78,5.35]
[1740911873881,1.13171741,609.2,608.78,5.35]
[1740911874379,1.13171741,609.19,608.78,5.35]
[1740911875077,1.42964217,609.35,608.78,5.35]
[1740911875272,3.03055386,609.35,608.78,5.35]
[1740911875479,2.73165753,609.34,608.78,5.35]
[1740911875980,1.13074584,609.33,608.78,5.35]
[1740911876382,1.60091169,609.34,608.78,5.35]
[1740911876383,1.13074584,609.32,608.78,5.35]
[1740911876881,1.13074584,609.31,608.78,5.35]
[1740911877581,1.13074584,609.3,608.78,5.35]
[1740911877976,1.13074584,609.29,608.78,5.35]
[1740911878383,1.13074584,609.28,608.78,5.35]
[1740911878777,1.13074584,609.27,608.78,5.35]
[1740911879587,1.13074584,609.26,608.78,5.35]
[1740911880178,1.13074584,609.25,608.78,5.35]
[1740911881078,1.13074584,609.24,608.78,5.35]
[1740911881787,1.13074584,609.23,608.78,5.35]
[1740911882485,1.13074584,609.22,608.78,5.35]
[1740911882687,1.13074584,609.21,608.78,5.35]
[1740911883285,1.13074584,609.2,608.78,5.35]
[1740911883984,3.02981166,609.33,608.78,5.35]
[1740911884187,1.6005884,609.32,608.78,5.35]
[1740911884486,1.13096823,609.32,608.78,5.35]
[1740911885485,1.13096823,609.31,608.78,5.35]
[1740911886388,1.13096823,609.3,608.78,5.35]
[1740911887587,1.13096823,609.29,608.78,5.35]
[1740911888289,1.13096823,609.28,608.78,5.35]
[1740911889286,1.13096823,609.27,608.78,5.35]
[1740911889585,1.13096823,609.26,608.78,5.35]
[1740911890090,1.13096823,609.25,608.78,5.35]
[1740911891190,1.13096823,609.24,608.78,5.35]
[1740911891586,1.13096823,609.23,608.78,5.35]
[1740911891987,1.13096823,609.22,608.78,5.35]
[1740911892686,0.97869102,609.42,608.78,5.35]
[1740911892687,1.13096823,609.21,608.78,5.35]
[1740911893284,1.13096823,609.2,608.78,5.35]
[1740911894086,1.13096823,609.19,608.78,5.35]
[1740911894484,1.13096823,609.18,608.78,5.35]
[1740911894892,1.13096823,609.17,608.78,5.35]
[1740911895589,1.13096823,609.16,608.78,5.35]
[1740911896386,1.13096823,609.15,608.78,5.35]
[1740911897685,1.71448278,609.26,608.78,5.35]
[1740911897686,1.13096823,609.14,608.78,5.35]
[1740911898394,1.13096823,609.13,608.78,5.35]
[1740911898894,3.03741526,609.35,608.78,5.35]
[1740911899194,3.03741526,609.34,608.78,5.35]
[1740911899394,3.03741526,609.33,608.78,5.35]
[1740911899595,3.03751075,609.32,608.78,5.35]
[1740911899894,3.03751075,609.31,608.78,5.35]
[1740911900095,3.03751075,609.3,608.78,5.35]
[1740911900298,3.03751075,609.29,608.78,5.35]
[1740911900499,3.03751075,609.28,608.78,5.35]
[1740911900693,1.4328938,609.27,608.78,5.35]
[1740911900897,1.4328938,609.26,608.78,5.35]
[1740911901096,1.13348433,609.27,608.78,5.35]
[1740911901398,4.17140408,609.26,608.78,5.35]
[1740911901591,3.03791975,609.25,608.78,5.35]
[1740911901795,1.43302234,609.24,608.78,5.35]
[1740911902098,1.43302234,609.23,608.78,5.35]
[1740911902298,1.4334276,609.22,608.78,5.35]
[1740911902499,1.13348433,609.21,608.78,5.35]
[1740911903197,1.13348433,609.2,608.78,5.35]
[1740911903797,1.13348433,609.19,608.78,5.35]
[1740911904195,1.13348433,609.18,608.78,5.35]
[1740911904995,1.13348433,609.17,608.78,5.35]
[1740911905599,1.13348433,609.16,608.78,5.35]
[1740911905997,1.13348433,609.15,608.78,5.35]
[1740911906600,1.13348433,609.14,608.78,5.35]
[1740911907492,1.13348433,609.13,608.78,5.35]
[1740911907693,3.0409264,609.12,608.78,5.35]
[1740911907899,1.6062076,609.11,608.78,5.35]
[1740911908098,1.13348433,609.12,608.4,1.23095386]
[1740911908397,1.60666784,609.11,608.41,0.32872569]
[1740911908599,1.13348433,609.12,608.41,0.32872569]
[1740911908801,1.13348433,609.1,608.41,0.32872569]
[1740911909897,1.13348433,609.09,608.41,0.32872569]
[1740911910102,1.13348433,609.08,608.41,0.32872569]
[1740911911105,1.13348433,609.08,608.41,6.18272569]
[1740911911299,1.13348433,609.07,608.41,6.18272569]
[1740911911704,3.03971734,609.06,608.41,6.18272569]
[1740911911903,1.13348433,609.07,608.41,6.18272569]
[1740911911904,3.03971734,609.05,608.41,6.18272569]
[1740911912098,3.03971734,609.04,608.41,6.18272569]
[1740911912298,1.43392525,609.03,608.41,6.18272569]
[1740911912596,1.13348433,609.04,608.41,6.18272569]
[1740911912800,1.71451798,609.27,608.41,6.18272569]
[1740911912801,1.13348433,609.02,608.41,6.18272569]
[1740911913202,1.13348433,609.01,608.41,6.18272569]
[1740911913806,1.13348433,609.0,608.41,6.18272569]
[1740911914404,1.13348433,608.99,608.41,6.18272569]
[1740911915406,1.71491931,609.24,608.41,6.18272569]
[1740911915607,3.0396625,609.23,608.41,6.18272569]
[1740911915906,4.17398701,609.22,608.41,6.18272569]
[1740911916100,3.0396625,609.21,608.41,6.18272569]
[1740911916305,3.0396625,609.2,608.41,6.18272569]
[1740911916504,3.0396625,609.19,608.41,6.18272569]
[1740911916706,3.03968786,609.18,608.41,6.18272569]
[1740911917007,1.60577555,609.17,608.41,6.18272569]
[1740911917403,1.13432451,609.18,608.41,6.18272569]
[1740911917609,2.74010006,609.18,608.41,6.18272569]
[1740911917802,1.13432451,609.17,608.41,6.18272569]
[1740911918608,1.13432451,609.16,608.41,6.18272569]
[1740911919205,1.13432451,609.15,608.41,6.18272569]
[1740911919803,1.13432451,609.14,608.41,6.18272569]
[1740911920505,1.13432451,609.13,608.41,6.18272569]
[1740911920902,1.13432451,609.12,608.41,6.18272569]
[1740911921506,1.13432451,609.11,608.41,6.18272569]
[1740911922108,1.13432451,609.1,608.41,6.18272569]
[1740911923107,1.13432451,609.09,608.41,6.18272569]
[1740911923612,1.13432451,609.08,608.41,6.18272569]
[1740911924013,1.13432451,609.07,608.41,6.18272569]
[1740911924212,1.13432451,609.06,608.41,6.18272569]
[1740911924813,1.13432451,609.05,608.41,6.18272569]
[1740911925212,1.13432451,609.04,608.41,6.18272569]
[1740911926015,1.13432451,609.03,608.41,6.18272569]
[1740911926808,1.13432451,609.02,608.41,6.18272569]
[1740911927514,1.13432451,609.01,608.41,6.18272569]
[1740911928216,1.13432451,609.0,608.41,6.18272569]
[1740911929018,3.03853326,609.2,608.41,6.18272569]
[1740911929221,3.03853326,609.19,608.41,6.18272569]
[1740911929414,3.03853326,609.18,608.41,6.18272569]
[1740911929613,3.03866633,609.17,608.41,6.18272569]
[1740911929817,3.03866633,609.16,608.41,6.18272569]
[1740911930014,3.03866633,609.15,608.41,6.18272569]
[1740911930320,3.03866633,609.14,608.41,6.18272569]
[1740911930516,1.13399748,609.15,608.41,6.18272569]
[1740911930718,1.13399748,609.13,608.41,6.18272569]
[1740911931321,1.13399748,609.12,608.41,6.18272569]
[1740911932322,1.13399748,609.11,608.41,6.18272569]
[1740911932924,1.13399748,609.1,608.41,6.18272569]
[1740911933723,3.03968019,609.3,608.41,6.18272569]
[1740911933917,3.03968019,609.29,608.41,6.18272569]
[1740911934122,4.173962,609.28,608.41,6.18272569]
[1740911934318,3.03968019,609.27,608.41,6.18272569]
[1740911934520,3.03968019,609.26,608.41,6.18272569]
[1740911934721,0.98183989,609.36,608.41,6.18272569]
[1740911934722,4.173962,609.25,608.41,6.18272569]
[1740911934920,3.03968019,609.24,608.41,6.18272569]
[1740911935120,3.03968019,609.23,608.41,6.18272569]
[1740911935317,3.03968019,609.22,608.41,6.18272569]
[1740911935519,4.173962,609.21,608.41,6.18272569]
[1740911935717,1.13428181,609.21,608.41,6.18272569]
[1740911935915,1.13428181,609.2,608.41,6.18272569]
[1740911936822,1.13428181,609.19,608.41,6.18272569]
[1740911937523,1.13428181,609.18,608.41,6.18272569]
[1740911938119,1.13428181,609.17,608.41,6.18272569]
[1740911938626,1.13428181,609.16,608.41,6.18272569]
[1740911939029,1.13428181,609.15,608.41,6.18272569]
[1740911939834,3.04030787,609.31,608.41,6.18272569]
[1740911940131,3.04030787,609.3,608.41,6.18272569]
[1740911940332,1.60614586,609.29,608.41,6.18272569]
[1740911940535,1.13440245,609.3,608.41,6.18272569]
[1740911940733,4.17471032,609.3,608.41,6.18272569]
[1740911940930,4.17471032,609.29,608.41,6.18272569]
[1740911941126,3.04030787,609.28,608.41,6.18272569]
[1740911941330,1.60614586,609.28,608.41,6.18272569]
[1740911941637,1.13440245,609.27,608.41,6.18272569]
[1740911941839,4.17459107,609.27,608.41,6.18272569]
[1740911942127,4.17459107,609.26,608.41,6.18272569]
[1740911942332,1.43404276,609.25,608.41,6.18272569]
[1740911942632,1.13440245,609.26,608.41,6.18272569]
[1740911942834,1.13440245,609.24,608.41,6.18272569]
[1740911943934,1.13440245,609.23,608.41,6.18272569]
[1740911944327,1.13440245,609.22,608.41,6.18272569]
[1740911944928,1.13440245,609.21,608.41,6.18272569]
[1740911945537,1.13440245,609.2,608.41,6.18272569]
[1740911946327,1.13440245,609.19,608.41,6.18272569]
[1740911947038,1.43439442,609.18,608.41,6.18272569]
[1740911947237,1.13440245,609.18,608.41,6.18272569]
[1740911947735,1.13440245,609.17,608.41,6.18272569]
[1740911948132,1.13440245,609.16,608.41,6.18272569]
[1740911948733,1.13440245,609.15,608.41,6.18272569]
[1740911949336,1.13440245,609.14,608.41,6.18272569]
[1740911949736,1.13440245,609.13,608.41,6.18272569]
[1740911950237,1.13440245,609.12,608.41,6.18272569]
[1740911950631,1.13440245,609.11,608.41,6.18272569]
[1740911951234,1.13440245,609.1,608.41,6.18272569]
[1740911951637,1.13440245,609.09,608.41,6.18272569]
[1740911952536,3.0424446,609.28,608.41,6.18272569]
[1740911952733,3.0424446,609.27,608.41,6.18272569]
[1740911952938,3.0424446,609.26,608.41,6.18272569]
[1740911953237,3.0424446,609.25,608.41,6.18272569]
[1740911953538,1.43517145,609.24,608.41,6.18272569]
[1740911953732,1.13527214,609.25,608.41,6.18272569]
[1740911953931,1.13527214,609.23,608.41,6.18272569]
[1740911954536,1.13527214,609.22,608.41,6.18272569]
[1740911955432,1.13527214,609.21,608.41,6.18272569]
[1740911956038,1.13527214,609.2,608.41,6.18272569]
[1740911957041,1.13527214,609.19,608.41,6.18272569]
[1740911957636,1.13527214,609.18,608.41,6.18272569]
[1740911958242,3.04169213,609.45,608.41,6.18272569]
[1740911958541,1.13527214,609.46,608.41,6.18272569]
[1740911958938,1.13527214,609.45,608.41,6.18272569]